bitfinex/quotes_BTCUSD_20241111
["timestamp","ask_amount","ask_price","bid_price","bid_amount"]
[1731319022094,0.18478839,81782.0,81780.0,0.222279]
[1731319022326,0.000693,81782.0,81780.0,0.222279]
[1731319022550,0.12598221,81781.0,81780.0,0.222279]
[1731319024347,1.62598221,81781.0,81780.0,0.222279]
[1731319024978,1.62598221,81781.0,81777.0,0.005]
[1731319024979,1.62598221,81781.0,81777.0,0.105]
[1731319025192,1.62598221,81781.0,81770.0,0.244588]
[1731319025193,0.12594221,81780.0,81770.0,0.244588]
[1731319025420,0.023,81779.0,81776.0,0.122285]
[1731319025635,0.023,81780.0,81779.0,0.12228]
[1731319025838,1.50004,81781.0,81771.0,0.1]
[1731319025839,1.50004,81781.0,81780.0,0.122279]
[1731319027181,1.50004,81781.0,81779.0,0.12228]
[1731319027405,1.50004,81781.0,81780.0,0.122279]
[1731319027625,1.62682521,81781.0,81780.0,0.122279]
[1731319029686,1.62682521,81781.0,81779.0,0.12228]
[1731319029895,0.12594221,81780.0,81777.0,0.005]
[1731319030109,0.12594221,81780.0,81774.0,0.244576]
[1731319030323,0.16241046,81780.0,81774.0,0.1]
[1731319030535,0.16241046,81780.0,81775.0,0.1]
[1731319030738,0.16241046,81780.0,81775.0,0.222286]
[1731319030967,0.16241046,81780.0,81775.0,0.1]
[1731319031183,0.16241046,81780.0,81775.0,0.344571]
[1731319031184,0.12594221,81780.0,81775.0,0.344571]
[1731319031406,0.12594221,81780.0,81775.0,0.222286]
[1731319031658,0.12594221,81780.0,81772.0,0.22229]
[1731319031893,0.16241046,81780.0,81772.0,0.22229]
[1731319032118,0.16241046,81780.0,81775.0,0.1]
[1731319032328,0.1004,81779.0,81775.0,0.1]
[1731319032552,0.023,81777.0,81775.0,0.1]
[1731319032777,0.12594221,81778.0,81764.0,0.001686]
[1731319032778,0.29610999,81776.0,81764.0,0.001686]
[1731319033007,0.023,81771.0,81764.0,0.001686]
[1731319033248,0.023,81769.0,81768.0,0.122297]
[1731319033479,0.14894221,81769.0,81768.0,0.122297]
[1731319033701,0.12594221,81769.0,81768.0,0.122297]
[1731319033902,1.62594221,81769.0,81768.0,0.122297]
[1731319034801,0.12594221,81769.0,81768.0,0.124297]
[1731319035262,0.12594221,81769.0,81768.0,0.122297]
[1731319035486,0.12594221,81769.0,81768.0,0.227297]
[1731319035702,0.03646825,81784.0,81780.0,0.122279]
[1731319035931,0.3109206,81781.0,81780.0,0.122279]
[1731319036139,0.12682521,81781.0,81780.0,0.122279]
[1731319036564,0.12682521,81781.0,81780.0,0.127279]
[1731319036772,0.12682521,81781.0,81780.0,0.227279]
[1731319039603,0.000883,81781.0,81780.0,0.229279]
[1731319039842,0.000883,81781.0,81780.0,0.23199298]
[1731319040717,0.000883,81781.0,81780.0,0.22699298]
[1731319040718,0.12682521,81781.0,81780.0,0.22699298]
[1731319040936,0.12682521,81781.0,81780.0,0.23199298]
[1731319041368,0.12682521,81781.0,81780.0,0.22699298]
[1731319041578,0.12682521,81781.0,81774.0,0.005]
[1731319041792,0.12594221,81780.0,81772.0,0.105]
[1731319042010,0.12594221,81780.0,81777.0,0.1]
[1731319042219,0.12594221,81780.0,81776.0,0.122285]
[1731319042633,0.12594221,81780.0,81774.0,0.244576]
[1731319042844,0.12594221,81780.0,81779.0,0.12228]
[1731319043476,1.62594221,81780.0,81779.0,0.12228]
[1731319043704,0.12594221,81780.0,81779.0,0.12928]
[1731319043893,0.12594221,81780.0,81779.0,0.22928]
[1731319044108,0.12594221,81780.0,81775.0,0.244573]
[1731319044109,0.000883,81781.0,81780.0,0.229279]
[1731319046247,0.000883,81781.0,81780.0,0.23172425]
[1731319047137,0.000883,81781.0,81780.0,0.227279]
[1731319047338,0.000883,81781.0,81780.0,0.23172435]
[1731319047841,0.000883,81781.0,81780.0,0.229279]
[1731319048909,0.000883,81781.0,81780.0,0.227279]
[1731319049116,0.000883,81781.0,81780.0,0.229279]
[1731319049764,0.000883,81781.0,81780.0,0.22854262]
[1731319050209,0.000883,81781.0,81780.0,0.22654262]
[1731319050419,0.000883,81781.0,81780.0,0.22854262]
[1731319051041,0.000759,81781.0,81780.0,0.22854262]
[1731319053288,0.000759,81781.0,81780.0,0.22654262]
[1731319053727,0.000759,81781.0,81780.0,0.22854262]
[1731319053939,0.000759,81781.0,81780.0,0.21854262]
[1731319056495,0.000759,81781.0,81780.0,0.21654262]
[1731319056925,0.12670121,81781.0,81780.0,0.21654262]
[1731319057354,0.12670121,81781.0,81780.0,0.222279]
[1731319057983,1.62670121,81781.0,81780.0,0.222279]
[1731319059259,0.12670121,81781.0,81780.0,0.222279]
[1731319060261,0.12670121,81781.0,81780.0,0.224279]
[1731319061800,0.12670121,81781.0,81780.0,0.222279]
[1731319062639,0.12670121,81781.0,81780.0,0.223965]
[1731319062854,0.12670121,81781.0,81780.0,0.001686]
[1731319063184,0.25580121,81781.0,81780.0,0.001686]
[1731319063384,1.75580121,81781.0,81780.0,0.001686]
[1731319064492,1.79229139,81781.0,81780.0,0.001686]
[1731319065043,1.75580121,81781.0,81780.0,0.001686]
[1731319066723,1.81053648,81781.0,81780.0,0.001686]
[1731319067486,1.75580121,81781.0,81780.0,0.001686]
[1731319068308,1.81064546,81781.0,81780.0,0.001686]
[1731319068919,1.75580121,81781.0,81780.0,0.001686]
[1731319069322,1.81064476,81781.0,81780.0,0.001686]
[1731319070266,1.81064476,81781.0,81780.0,0.123965]
[1731319070440,1.81064476,81781.0,81780.0,0.001686]
[1731319070688,0.31064476,81781.0,81780.0,0.001686]
[1731319071108,1.81064476,81781.0,81780.0,0.001686]
[1731319071461,1.93658697,81781.0,81780.0,0.001686]
[1731319071878,1.75580121,81781.0,81780.0,0.001686]
[1731319072049,1.89076658,81781.0,81780.0,0.001686]
[1731319073258,1.81064318,81781.0,81780.0,0.001686]
[1731319074805,1.81064318,81781.0,81780.0,0.123965]
[1731319075017,1.75580121,81781.0,81780.0,0.001686]
[1731319075227,1.75580121,81781.0,81780.0,0.123965]
[1731319075228,1.70740121,81781.0,81780.0,0.123965]
[1731319075476,1.74396167,81781.0,81780.0,0.001686]
[1731319075678,1.74396189,81781.0,81780.0,0.001686]
[1731319075883,1.71396273,81781.0,81780.0,0.001686]
[1731319076921,1.71396414,81781.0,81780.0,0.001686]
[1731319077789,0.21396486,81781.0,81780.0,0.001686]
[1731319078044,0.17740121,81781.0,81780.0,0.123965]
[1731319078683,0.21396486,81781.0,81780.0,0.001686]
[1731319079068,0.09670121,81781.0,81780.0,0.123965]
[1731319079325,0.09670121,81781.0,81780.0,0.001686]
[1731319079553,0.13326605,81781.0,81780.0,0.001686]
[1731319080200,0.13326938,81781.0,81780.0,0.001686]
[1731319080430,0.13326907,81781.0,81780.0,0.001686]
[1731319080667,0.09670121,81781.0,81780.0,0.001686]
[1731319081085,0.09670121,81781.0,81780.0,0.123965]
[1731319081542,0.09670121,81781.0,81780.0,0.001686]
[1731319082168,0.15154318,81781.0,81780.0,0.001686]
[1731319082850,0.09670121,81781.0,81780.0,0.001686]
[1731319083104,1.65154318,81781.0,81780.0,0.001686]
[1731319084175,1.59670121,81781.0,81780.0,0.001686]
[1731319085882,1.73169795,81781.0,81780.0,0.001686]
[1731319087138,1.73254095,81781.0,81780.0,0.001686]
[1731319087362,1.80552131,81781.0,81780.0,0.001686]
[1731319087797,1.73254095,81781.0,81780.0,0.001686]
[1731319088206,1.80552131,81781.0,81780.0,0.001686]
[1731319088439,1.59754421,81781.0,81780.0,0.001686]
[1731319088613,1.80552086,81781.0,81780.0,0.001686]
[1731319088866,1.7325405,81781.0,81780.0,0.001686]
[1731319089127,1.59754421,81781.0,81780.0,0.001686]
[1731319089335,1.65239975,81781.0,81780.0,0.001686]
[1731319089793,1.59754421,81781.0,81780.0,0.001686]
[1731319090209,1.73253894,81781.0,81780.0,0.001686]
[1731319090429,1.59754421,81781.0,81780.0,0.001686]
[1731319090813,1.80552295,81781.0,81780.0,0.001686]
[1731319091193,1.73254259,81781.0,81780.0,0.001686]
[1731319091599,1.84349017,81781.0,81780.0,0.001686]
[1731319091861,2.20631475,81781.0,81780.0,0.001686]
[1731319092031,2.24947474,81781.0,81780.0,0.001686]
[1731319092267,2.24947474,81781.0,81766.0,0.001686]
[1731319092268,0.1246,81774.0,81766.0,0.001686]
[1731319092401,0.122294,81770.0,81769.0,0.18409539]
[1731319092589,0.11094758,81767.0,81766.0,0.001686]
[1731319092808,0.23688979,81767.0,81766.0,0.001686]
[1731319093030,2.07128617,81767.0,81766.0,0.001686]
[1731319093250,1.94898817,81767.0,81766.0,0.001686]
[1731319094209,1.75788619,81767.0,81766.0,0.001686]
[1731319094407,1.70304221,81767.0,81766.0,0.001686]
[1731319094619,1.70304221,81767.0,81766.0,0.123986]
[1731319094849,1.70304221,81767.0,81766.0,0.001686]
[1731319095425,1.73960245,81767.0,81766.0,0.123986]
[1731319095826,1.73960245,81767.0,81766.0,0.001686]
[1731319096052,1.70304221,81767.0,81766.0,0.001686]
[1731319096304,1.91112612,81767.0,81766.0,0.001686]
[1731319096465,1.91111789,81767.0,81766.0,0.001686]
[1731319096615,1.8379982,81767.0,81766.0,0.001686]
[1731319098771,1.9294457,81767.0,81766.0,0.001686]
[1731319098983,1.8379982,81767.0,81766.0,0.001686]
[1731319099847,1.92937743,81767.0,81766.0,0.001686]
[1731319100274,1.83798655,81767.0,81766.0,0.001686]
[1731319100507,1.92937743,81767.0,81766.0,0.001686]
[1731319100720,2.05167543,81767.0,81766.0,0.001686]
[1731319101203,2.23121764,81767.0,81766.0,0.001686]
[1731319101407,2.13982676,81767.0,81766.0,0.001686]
[1731319101648,2.01388455,81767.0,81766.0,0.001686]
[1731319102852,2.26388455,81767.0,81766.0,0.001686]
[1731319104798,2.26382333,81767.0,81766.0,0.001686]
[1731319106723,2.13652533,81767.0,81766.0,0.001686]
[1731319107071,1.97784808,81767.0,81766.0,0.001686]
[1731319107276,1.83792533,81767.0,81766.0,0.001686]
[1731319107666,1.92924808,81767.0,81766.0,0.001686]
[1731319107861,2.10064608,81767.0,81766.0,0.001686]
[1731319108250,1.88702533,81767.0,81764.0,0.001686]
[1731319108452,0.0913193,81765.0,81764.0,0.001686]
[1731319108684,0.46742633,81765.0,81764.0,0.001686]
[1731319109086,0.59336854,81765.0,81764.0,0.001686]
[1731319109374,0.59332177,81765.0,81764.0,0.001686]
[1731319109576,0.49537956,81765.0,81764.0,0.001686]
[1731319109726,1.99537956,81765.0,81764.0,0.001686]
[1731319109936,2.20978551,81765.0,81764.0,0.00122061]
[1731319110467,2.43678551,81765.0,81764.0,0.00122061]
[1731319110829,2.43676272,81765.0,81764.0,0.00122061]
[1731319111638,2.56270493,81765.0,81764.0,0.00122061]
[1731319111815,2.43676272,81765.0,81764.0,0.00122061]
[1731319112786,2.45976272,81765.0,81764.0,0.00122061]
[1731319117285,2.45489403,81765.0,81764.0,0.00122061]
[1731319118856,2.45478253,81765.0,81764.0,0.00122061]
[1731319120955,2.45578253,81765.0,81764.0,0.00122061]
[1731319121261,2.62588848,81765.0,81764.0,0.00122061]
[1731319121460,0.29643595,81746.0,81745.0,2.84899459]
[1731319121610,0.50467816,81746.0,81745.0,2.84899459]
[1731319122018,2.00467816,81746.0,81745.0,2.83399459]
[1731319122218,2.02767816,81746.0,81745.0,2.83399459]
[1731319122722,2.16237553,81746.0,81745.0,2.83399459]
[1731319122897,2.2353568,81746.0,81745.0,2.83399459]
[1731319123100,2.16237553,81746.0,81745.0,2.83399459]
[1731319123744,2.23531641,81746.0,81745.0,2.83499459]
[1731319123948,2.16235088,81746.0,81745.0,2.83499459]
[1731319124203,2.23530204,81746.0,81745.0,2.83399459]
[1731319124550,2.23530715,81746.0,81745.0,2.83499459]
[1731319124757,2.24600216,81746.0,81745.0,2.83399459]
[1731319124979,2.16735088,81746.0,81745.0,2.83399459]
[1731319125179,2.06618664,81746.0,81745.0,2.83499459]
[1731319125528,1.83557221,81746.0,81745.0,2.83499459]
[1731319128499,1.70824221,81746.0,81745.0,2.83399459]
[1731319128848,1.71324221,81746.0,81745.0,2.83499459]
[1731319129309,1.83557221,81746.0,81745.0,2.83499459]
[1731319130363,1.83557221,81746.0,81745.0,2.83399459]
[1731319130675,1.83557221,81746.0,81745.0,2.83499459]
[1731319131336,1.8720403,81746.0,81745.0,2.83499459]
[1731319132201,1.89027504,81746.0,81745.0,2.83499459]
[1731319132809,2.12728895,81746.0,81745.0,2.83499459]
[1731319132991,2.12732425,81746.0,81745.0,2.83499459]
[1731319133222,2.08137488,81746.0,81745.0,2.83499459]
[1731319133446,1.94664391,81746.0,81745.0,2.83499459]
[1731319133658,2.08137204,81746.0,81745.0,2.83499459]
[1731319133872,2.00139089,81746.0,81745.0,2.83499459]
[1731319134074,2.00139089,81746.0,81745.0,2.83399459]
[1731319134273,2.15433904,81746.0,81745.0,2.83499459]
[1731319134488,2.03200904,81746.0,81745.0,2.83499459]
[1731319134720,1.82431391,81746.0,81745.0,2.83499459]
[1731319134920,1.81931391,81746.0,81745.0,2.83499459]
[1731319135306,1.95409797,81746.0,81745.0,2.83499459]
[1731319135505,1.87179797,81746.0,81745.0,2.83499459]
[1731319135724,1.76072621,81746.0,81745.0,2.83499459]
[1731319135921,1.62594221,81746.0,81745.0,2.83499459]
[1731319136125,1.83370607,81746.0,81745.0,2.83499459]
[1731319137178,1.76076436,81746.0,81745.0,2.83499459]
[1731319137792,1.88670657,81746.0,81745.0,2.83499459]
[1731319138206,1.76076436,81746.0,81745.0,2.83499459]
[1731319139491,1.76066436,81746.0,81745.0,2.83499459]
[1731319139905,1.62584221,81746.0,81745.0,2.83499459]
[1731319140112,1.68065784,81746.0,81745.0,2.83499459]
[1731319140764,1.68065784,81746.0,81745.0,2.95732559]
[1731319140986,1.68065784,81746.0,81745.0,2.83499459]
[1731319141215,1.62584221,81746.0,81745.0,2.83499459]
[1731319142101,1.76078275,81746.0,81745.0,2.83499459]
[1731319142768,1.76078707,81746.0,81745.0,2.83499459]
[1731319143632,1.8521783,81746.0,81745.0,2.83499459]
[1731319144554,1.76078707,81746.0,81745.0,2.83499459]
[1731319144770,1.84268707,81746.0,81745.0,2.83499459]
[1731319146374,1.84353107,81746.0,81745.0,2.83499459]
[1731319147673,1.84361612,81746.0,81745.0,2.83499459]
[1731319149883,1.96594612,81746.0,81745.0,2.83499459]
[1731319150094,1.84361612,81746.0,81745.0,2.83499459]
[1731319151762,2.08701782,81746.0,81745.0,2.83499459]
[1731319151934,2.08701782,81746.0,81745.0,0.00499459]
[1731319151935,2.15741782,81746.0,81745.0,0.00499459]
[1731319152147,1.90101612,81746.0,81745.0,0.00499459]
[1731319152341,2.02334612,81746.0,81745.0,0.00499459]
[1731319152567,2.02340216,81746.0,81745.0,0.00499459]
[1731319153540,2.14934437,81746.0,81745.0,0.00499459]
[1731319153718,2.02340216,81746.0,81745.0,0.00499459]
[1731319153925,2.02340216,81746.0,81745.0,0.00399459]
[1731319154194,2.01840216,81746.0,81745.0,0.00399459]
[1731319154394,2.04640216,81746.0,81745.0,0.00499459]
[1731319154599,2.09169926,81746.0,81745.0,0.00499459]
[1731319154799,2.26097961,81746.0,81745.0,0.00499459]
[1731319155644,2.26097961,81746.0,81745.0,0.00399459]
[1731319155795,2.26097961,81746.0,81745.0,0.00499459]
[1731319156209,2.33417074,81746.0,81745.0,0.00499459]
[1731319156414,2.26097961,81746.0,81745.0,0.00499459]
[1731319157143,2.21073338,81746.0,81745.0,0.00499459]
[1731319157566,2.21573338,81746.0,81745.0,0.00499459]
[1731319159755,2.21573338,81746.0,81745.0,0.00399459]
[1731319159958,2.28896355,81746.0,81745.0,0.00399459]
[1731319160076,2.21573338,81746.0,81745.0,0.00399459]
[1731319160519,2.21073338,81746.0,81745.0,0.00399459]
[1731319160729,2.21573338,81746.0,81745.0,0.00399459]
[1731319160898,2.23876915,81746.0,81745.0,0.00399459]
[1731319161120,2.21573338,81746.0,81745.0,0.00399459]
[1731319161498,2.21573338,81746.0,81745.0,0.00499459]
[1731319161696,2.21573338,81746.0,81745.0,0.00399459]
[1731319161967,2.21577239,81746.0,81745.0,0.00499459]
[1731319162168,2.22972096,81746.0,81745.0,0.00499459]
[1731319162408,2.22972096,81746.0,81745.0,0.00399459]
[1731319162625,2.22472096,81746.0,81745.0,0.00399459]
[1731319162853,2.22472096,81746.0,81745.0,0.00499459]
[1731319162854,2.22972096,81746.0,81745.0,0.00499459]
[1731319163063,2.21577239,81746.0,81745.0,0.00499459]
[1731319163666,2.21077239,81746.0,81745.0,0.00499459]
[1731319163939,2.05847239,81746.0,81745.0,0.00399459]
[1731319164389,2.05847239,81746.0,81745.0,0.00499459]
[1731319165736,2.1844146,81746.0,81745.0,0.00499459]
[1731319166828,2.05847239,81746.0,81745.0,0.00499459]
[1731319169939,2.16047239,81746.0,81745.0,0.00499459]
[1731319171018,2.16055003,81746.0,81745.0,0.00499459]
[1731319171667,2.16555003,81746.0,81745.0,0.00499459]
[1731319171899,2.21495003,81746.0,81745.0,0.00499459]
[1731319172131,2.34089224,81746.0,81745.0,0.00399459]
[1731319172342,2.53024947,81746.0,81745.0,0.00399459]
[1731319172557,2.64017895,81746.0,81745.0,0.00399459]
[1731319172776,2.53025418,81746.0,81745.0,0.00399459]
[1731319173450,2.53025418,81746.0,81745.0,0.00499459]
[1731319173653,2.34089224,81746.0,81745.0,0.00499459]
[1731319173858,2.34089224,81746.0,81745.0,0.00399459]
[1731319174074,2.34389224,81746.0,81745.0,0.00399459]
[1731319174748,2.34689224,81746.0,81745.0,0.00399459]
[1731319175608,2.22095003,81746.0,81745.0,0.00399459]
[1731319176213,2.08569656,81746.0,81745.0,0.00399459]
[1731319176426,2.22092864,81746.0,81745.0,0.00399459]
[1731319176629,2.22092864,81746.0,81745.0,0.00350188]
[1731319176839,2.27384499,81746.0,81745.0,0.00350188]
[1731319177241,2.16274664,81746.0,81745.0,0.00350188]
[1731319180782,2.15974664,81746.0,81745.0,0.00350188]
[1731319181026,2.15474664,81746.0,81745.0,0.00350188]
[1731319181230,2.16273017,81746.0,81745.0,0.00350188]
[1731319181437,2.15773017,81746.0,81745.0,0.00350188]
[1731319181641,2.27261968,81746.0,81745.0,0.00350188]
[1731319181847,2.16273017,81746.0,81745.0,0.00350188]
[1731319182567,2.02863182,81746.0,81745.0,0.00350188]
[1731319182783,2.13973017,81746.0,81745.0,0.00350188]
[1731319183196,2.47829953,81746.0,81745.0,0.00350188]
[1731319183422,2.60424174,81746.0,81745.0,0.00350188]
[1731319183621,2.37677073,81746.0,81745.0,0.00350188]
[1731319183831,2.39977073,81746.0,81745.0,0.00350188]
[1731319185878,2.16272059,81746.0,81745.0,0.00350188]
[1731319186744,2.15972059,81746.0,81745.0,0.00350188]
[1731319187187,2.26660231,81746.0,81745.0,0.00350188]
[1731319187406,2.26661212,81746.0,81745.0,0.00450188]
[1731319187674,2.10232059,81746.0,81745.0,0.00450188]
[1731319188106,2.02332059,81746.0,81745.0,0.00450188]
[1731319189625,2.00032059,81746.0,81745.0,0.00450188]
[1731319190734,1.76192167,81746.0,81745.0,0.00450188]
[1731319191374,1.87302002,81746.0,81745.0,0.00450188]
[1731319193836,2.07545002,81746.0,81745.0,0.00450188]
[1731319194084,2.20954837,81746.0,81745.0,0.00450188]
[1731319194298,2.33549058,81746.0,81745.0,0.00350188]
[1731319194505,2.33549058,81746.0,81745.0,0.00450188]
[1731319194680,2.5298464,81746.0,81745.0,0.00350188]
[1731319194910,2.47696737,81746.0,81745.0,0.00350188]
[1731319195112,2.47696737,81746.0,81745.0,0.00450188]
[1731319195322,2.47696737,81746.0,81745.0,0.00350188]
[1731319196809,2.35102516,81746.0,81745.0,0.00350188]
[1731319197011,2.35106064,81746.0,81745.0,0.00350188]
[1731319197233,2.35784284,81746.0,81745.0,0.00350188]
[1731319197433,2.35584284,81746.0,81745.0,0.00350188]
[1731319197547,2.35784284,81746.0,81745.0,0.00350188]
[1731319197756,2.48578505,81746.0,81745.0,0.00350188]
[1731319198622,2.73378505,81746.0,81745.0,0.00350188]
[1731319198820,2.60984284,81746.0,81745.0,0.00350188]
[1731319199028,2.60784284,81746.0,81745.0,0.00350188]
[1731319199248,2.60984284,81746.0,81745.0,0.00350188]
[1731319199672,2.60784284,81746.0,81745.0,0.00350188]
[1731319200214,2.60584284,81746.0,81745.0,0.00350188]
[1731319200629,2.73378505,81746.0,81745.0,0.00350188]
[1731319200846,2.73178505,81746.0,81745.0,0.00350188]
[1731319201059,2.72678505,81746.0,81745.0,0.00350188]
[1731319201277,2.73178505,81746.0,81745.0,0.00350188]
[1731319201912,2.84170325,81746.0,81745.0,0.00350188]
[1731319202090,2.73178505,81746.0,81745.0,0.00350188]
[1731319202329,2.84170083,81746.0,81745.0,0.00350188]
[1731319202940,2.65233522,81746.0,81745.0,0.00350188]
[1731319203641,2.84168407,81746.0,81745.0,0.00350188]
[1731319204093,2.54241944,81746.0,81745.0,0.00350188]
[1731319204315,2.65233621,81746.0,81745.0,0.00350188]
[1731319204544,2.54241944,81746.0,81745.0,0.00350188]
[1731319204762,2.54240473,81746.0,81745.0,0.00350188]
[1731319205199,2.6523193,81746.0,81745.0,0.00350188]
[1731319205632,2.30358032,81746.0,81745.0,0.00350188]
[1731319206884,2.18125032,81746.0,81745.0,0.00350188]
[1731319208143,2.30358032,81746.0,81745.0,0.00350188]
[1731319208550,2.30358032,81746.0,81745.0,0.00450188]
[1731319209170,2.18125032,81746.0,81745.0,0.00450188]
[1731319209585,2.18121129,81746.0,81745.0,0.00450188]
[1731319210453,2.3071535,81746.0,81745.0,0.00450188]
[1731319210667,2.4294835,81746.0,81745.0,0.00450188]
[1731319210874,2.3071535,81746.0,81745.0,0.00450188]
[1731319211507,2.18121129,81746.0,81745.0,0.00450188]
[1731319214206,2.18119717,81746.0,81745.0,0.00450188]
[1731319214412,2.27275423,81746.0,81745.0,0.00450188]
[1731319214622,0.33512461,81746.0,81745.0,0.12883288]
[1731319214829,0.3351224,81746.0,81745.0,0.12883288]
[1731319215059,0.2618795,81746.0,81745.0,0.12883288]
[1731319215651,0.2618795,81746.0,81745.0,0.24823288]
[1731319216198,0.12668621,81746.0,81745.0,0.25023288]
[1731319216399,0.12668621,81746.0,81745.0,0.24823288]
[1731319216604,0.16329543,81746.0,81745.0,0.24823288]
[1731319216961,0.12668621,81746.0,81745.0,0.24823288]
[1731319217164,0.000844,81746.0,81745.0,0.35523288]
[1731319217907,0.000844,81746.0,81745.0,0.35423288]
[1731319218416,0.000844,81746.0,81745.0,0.35523288]
[1731319218649,0.000844,81746.0,81745.0,0.35323288]
[1731319218869,0.12678621,81746.0,81745.0,0.05080188]
[1731319219147,0.12678621,81746.0,81745.0,0.17313288]
[1731319219778,0.12678621,81746.0,81745.0,0.17213288]
[1731319220828,0.12678621,81746.0,81745.0,0.00350188]
[1731319221033,0.25095205,81746.0,81745.0,0.00350188]
[1731319221244,0.29786488,81746.0,81745.0,0.00350188]
[1731319221452,0.37801809,81746.0,81745.0,0.00350188]
[1731319221659,1.96946781,81746.0,81745.0,0.00350188]
[1731319221869,1.87801809,81746.0,81745.0,0.00350188]
[1731319222076,1.88284722,81746.0,81745.0,0.00350188]
[1731319222306,1.87801809,81746.0,81745.0,0.00350188]
[1731319222515,1.96946813,81746.0,81745.0,0.00350188]
[1731319222957,1.87801809,81746.0,81745.0,0.00350188]
[1731319223354,1.87802428,81746.0,81745.0,0.00350188]
[1731319223898,1.85002428,81746.0,81745.0,0.00350188]
[1731319224099,1.80085228,81746.0,81745.0,0.00350188]
[1731319224301,2.11070736,81746.0,81745.0,0.00350188]
[1731319224502,2.019259,81746.0,81745.0,0.00350188]
[1731319224699,2.047259,81746.0,81745.0,0.00350188]
[1731319224924,2.13870736,81746.0,81745.0,0.00350188]
[1731319225127,2.047259,81746.0,81745.0,0.00350188]
[1731319226347,2.128959,81746.0,81745.0,0.00350188]
[1731319226583,2.129803,81746.0,81745.0,0.00350188]
[1731319227241,2.18442981,81746.0,81745.0,0.00350188]
[1731319227649,2.129803,81746.0,81745.0,0.00350188]
[1731319228077,2.12981351,81746.0,81745.0,0.00350188]
[1731319228284,2.13481351,81746.0,81745.0,0.00350188]
[1731319228940,2.13481351,81746.0,81745.0,0.01560188]
[1731319229358,2.13432654,81746.0,81745.0,0.01560188]
[1731319229567,2.14032654,81746.0,81745.0,0.01560188]
[1731319230409,2.13532654,81746.0,81745.0,0.01560188]
[1731319230621,2.14032654,81746.0,81745.0,0.01560188]
[1731319231670,2.0052868,81746.0,81745.0,0.01560188]
[1731319231891,2.2502868,81746.0,81745.0,0.01560188]
[1731319232299,2.35041476,81746.0,81745.0,0.01560188]
[1731319232512,2.35541476,81746.0,81745.0,0.01560188]
[1731319232682,2.35241476,81746.0,81745.0,0.01560188]
[1731319232892,2.48745561,81746.0,81745.0,0.01560188]
[1731319233448,2.34941476,81746.0,81745.0,0.01560188]
[1731319233727,2.2442868,81746.0,81745.0,0.01560188]
[1731319234336,2.2402868,81746.0,81745.0,0.01560188]
[1731319234546,2.2352868,81746.0,81745.0,0.01560188]
[1731319234749,1.81605208,81746.0,81745.0,0.01560188]
[1731319234960,1.73435208,81746.0,81745.0,0.01560188]
[1731319235162,1.71135208,81746.0,81745.0,0.01560188]
[1731319235573,1.71435208,81746.0,81745.0,0.01560188]
[1731319235780,1.8835868,81746.0,81745.0,0.01560188]
[1731319235978,1.8865868,81746.0,81745.0,0.01560188]
[1731319236180,1.8835868,81746.0,81745.0,0.01560188]
[1731319236562,1.8805868,81746.0,81745.0,0.01560188]
[1731319237586,1.9085868,81746.0,81745.0,0.01560188]
[1731319237821,1.8805868,81746.0,81745.0,0.01560188]
[1731319239276,1.8815868,81746.0,81745.0,0.01560188]
[1731319239508,1.8805868,81746.0,81745.0,0.01560188]
[1731319241993,2.08732901,81746.0,81745.0,0.01560188]
[1731319242207,2.0309868,81746.0,81745.0,0.01560188]
[1731319243065,2.1660498,81746.0,81745.0,0.01560188]
[1731319243483,2.1710498,81746.0,81745.0,0.01560188]
[1731319244119,2.1760498,81746.0,81745.0,0.01660188]
[1731319244311,2.40675749,81746.0,81745.0,0.01560188]
[1731319244539,2.41275749,81746.0,81745.0,0.01560188]
[1731319245186,0.377349,81733.0,81732.0,0.001886]
[1731319245395,1.12622365,81733.0,81732.0,0.001886]
[1731319245663,0.9848504,81733.0,81732.0,0.001886]
[1731319245861,0.31959472,81726.0,81716.0,0.001686]
[1731319246049,0.66039993,81726.0,81716.0,0.001686]
[1731319246295,2.18326124,81726.0,81716.0,0.001686]
[1731319246508,0.255,81717.0,81716.0,0.001686]
[1731319246723,0.69554993,81717.0,81716.0,0.001686]
[1731319246932,0.83061293,81717.0,81716.0,0.001686]
[1731319247146,0.95921293,81717.0,81716.0,0.001686]
[1731319247795,0.98207729,81717.0,81716.0,0.001686]
[1731319248021,0.379996,81717.0,81716.0,0.001686]
[1731319248260,0.14880657,81717.0,81716.0,0.001686]
[1731319248472,0.12594221,81717.0,81716.0,0.001686]
[1731319248688,0.12794221,81717.0,81716.0,0.124061]
[1731319249148,0.18409539,81725.0,81724.0,0.122363]
[1731319249356,0.3100376,81725.0,81724.0,0.124363]
[1731319249605,0.12594221,81725.0,81724.0,0.124363]
[1731319250858,0.12594221,81725.0,81724.0,0.122363]
[1731319251740,0.12594221,81725.0,81718.0,0.244744]
[1731319251951,0.12594221,81724.0,81718.0,0.1]
[1731319252157,0.12594221,81724.0,81723.0,0.122364]
[1731319252364,1.62594221,81724.0,81721.0,0.122366]
[1731319252505,1.62594221,81724.0,81722.0,0.122364]
[1731319252714,1.62594221,81724.0,81720.0,0.122369]
[1731319253183,1.62594221,81724.0,81716.0,0.101686]
[1731319253392,1.79517693,81724.0,81716.0,0.101686]
[1731319253593,0.12594221,81723.0,81716.0,0.101686]
[1731319253801,0.12594221,81722.0,81716.0,0.101686]
[1731319254037,0.16923472,81718.0,81716.0,0.001686]
[1731319254229,0.12594221,81717.0,81716.0,0.001686]
[1731319254438,0.16026614,81717.0,81716.0,0.001686]
[1731319254857,0.12594221,81717.0,81716.0,0.001686]
[1731319258009,1.62594221,81717.0,81716.0,0.001686]
[1731319258247,1.62594221,81717.0,81716.0,0.124061]
[1731319258848,0.12594221,81717.0,81716.0,0.124061]
[1731319260590,0.12594221,81717.0,81716.0,0.001686]
[1731319260591,1.62594221,81717.0,81716.0,0.001686]
[1731319260840,1.62594221,81717.0,81716.0,0.124061]
[1731319261266,0.12594221,81717.0,81716.0,0.124061]
[1731319262109,0.12594221,81717.0,81716.0,0.126061]
[1731319262312,0.12594221,81717.0,81716.0,0.124061]
[1731319263765,1.500844,81726.0,81725.0,0.122361]
[1731319263967,1.500844,81726.0,81725.0,0.224361]
[1731319263968,0.000844,81726.0,81725.0,0.224361]
[1731319264672,0.000844,81726.0,81725.0,0.23180801]
[1731319264838,0.000844,81726.0,81725.0,0.234361]
[1731319266824,0.000844,81726.0,81725.0,0.23900895]
[1731319267884,0.000844,81726.0,81725.0,0.25110895]
[1731319270063,0.000844,81726.0,81725.0,0.24610895]
[1731319270278,0.000844,81726.0,81725.0,0.25110895]
[1731319272088,0.000844,81726.0,81725.0,0.24610895]
[1731319274681,0.000844,81726.0,81725.0,0.25355584]